[Event "23rd OIBM 2019"]
[Site "Gmund am Tegernsee"]
[Date "2019.10.29"]
[Round "4.27"]
[White "Kraich, Klaus"]
[Black "Hoffmann, Michael"]
[Result "0-1"]
[ECO "A01"]
[WhiteElo "2183"]
[BlackElo "2445"]
[Annotator "ChessBase"]
[PlyCount "42"]
[EventDate "2019.10.17"]
[EventType "swiss"]
[EventCountry "GER"]
[SourceTitle "playchess.com"]
[Source "ChessBase"]
[SourceQuality "1"]
[TimeControl "40/5400+30:1800+30"]

1. b3 {[%emt 0:00:00]} e5 {[%emt 0:04:51]} 2. Bb2 {[%emt 0:00:00]} d6 {[%emt 0:01:38]} 3. e3 {[%emt 0:01:21]} Nf6 {[%emt 0:04:15]} 4. c4 {[%emt 0:03:41]} g6 {[%emt 0:02:25]} 5. Na3 {[%emt 0:13:19]} Bg7 {[%emt 0:00:47]} 6. Nf3 {[%emt 0:02:16]} O-O {[%emt 0:03:56]} 7. d4 {[%emt 0:02:37]} exd4 {[%emt 0:02:43]} 8. Nxd4 {[%emt 0:00:15]} Re8 {[%emt 0:11:08]} 9. Be2 {[%emt 0:00:48]} Ne4 {[%emt 0:02:51]} 10. Qc1 {[%emt 0:02:42]} Qf6 {[%emt 0:02:48]} 11. Bf3 {[%emt 0:14:54]} c5 {[%emt 0:02:42]} 12. Nab5 {[%emt 0:00:44]} cxd4 {[%emt 0:05:24]} 13. Nc7 {[%emt 0:00:53]} Qd8 {[%emt 0:01:56]} 14. Nxe8 {[%emt 0:14:05]} Qxe8 {[%emt 0:01:07]} 15. O-O {[%emt 0:04:49]} dxe3 {[%emt 0:02:13]} 16. Bxg7 {[%emt 0:05:25]} exf2+ {[%emt 0:03:14]} 17. Rxf2 {[%emt 0:00:57]} Nxf2 {[%emt 0:08:31]} 18. Qc3 {[%emt 0:03:06]} Nd3 {[%emt 0:02:24]} 19. Kf1 {[%emt 0:10:25]} Nc6 {[%emt 0:02:50]} 20. Rd1 {[%emt 0:02:18]} Bf5 {[%emt 0:02:13]} 21. Bd5 {[%emt 0:06:27]} Qe3 {[%emt 0:01:21]} 0-1

[Event "23rd OIBM 2019"]
[Site "Gmund am Tegernsee"]
[Date "2019.10.29"]
[Round "4.28"]
[White "Fleuren, Jan"]
[Black "Ries, Berthold"]
[Result "1/2-1/2"]
[ECO "B20"]
[WhiteElo "2097"]
[BlackElo "1854"]
[Annotator "NA"]
[PlyCount "57"]
[EventDate "2019.10.17"]
[EventType "swiss"]
[EventCountry "GER"]
[SourceTitle "playchess.com"]
[Source "ChessBase"]
[SourceQuality "1"]
[TimeControl "40/5400+30:1800+30"]

1. e4 {[%emt 0:00:00]} c5 {[%emt 0:00:00]} 2. b3 {[%emt 0:00:00]} d6 {[%emt 0:00:00]} 3. Bb2 {[%emt 0:00:00]} Nf6 {[%emt 0:00:11]} 4. Bb5+ {[%emt 0:01:09]} Nbd7 {[%emt 0:00:26]} 5. d3 {[%emt 0:03:38]} a6 {[%emt 0:09:16]} (5... g6 6. Bxd7+ Bxd7 7. Nc3 Bc6 8. Nd5 Bxd5 9. exd5 Qa5+ 10. Qd2 Qxd2+ 11. Kxd2 Bh6+ 12. Kd1 Bg7 {½-½ (23) Paichadze,L (2543)-Hovhannisyan,R (2592) Tbilisi 2014}) 6. Bxd7+ {[%emt 0:00:13] B20: Sicilian: Unusual White 2nd moves} Bxd7 {[%emt 0:01:52]} 7. f4 {[%emt 0:00:21]} Bc6 {[%emt 0:07:16]} 8. Nd2 {[%emt 0:01:45]} g6 {[%emt 0:02:12]} 9. Ngf3 {[%emt 0:02:55]} Bg7 {[%emt 0:01:02]} 10. O-O {[%emt 0:00:24]} O-O {[%emt 0:00:20]} 11. Rb1 {[%emt 0:03:57]} b5 $146 {[%emt 0:05:17]} ({Predecessor:} 11... a5 12. Qe1 a4 13. Qh4 {0-1 (49) Aliyev,E (2157)-Benidze,D (2459) Kocaeli 2014}) 12. Qe2 {[%emt 0:03:26]} e6 {[%emt 0:01:27]} 13. c4 {[%emt 0:05:03]} Nh5 {[%emt 0:04:36]} 14. Bxg7 {[%emt 0:00:51]} Nxg7 {[%emt 0:00:19]} 15. d4 {[%emt 0:01:00]} cxd4 {[%emt 0:04:37]} 16. Nxd4 {[%emt 0:00:08]} Qb6 {[%emt 0:04:32]} 17. Qf2 {[%emt 0:00:09]} Bd7 {[%emt 0:06:12]} 18. N4f3 {[%emt 0:04:40]} Qxf2+ {[%emt 0:09:23]} 19. Kxf2 {[%emt 0:01:20]} Rfd8 $11 {[%emt 0:00:47]} 20. Rbc1 {[%emt 0:03:57]} Rac8 {[%emt 0:10:01]} 21. Rfe1 {[%emt 0:02:06]} b4 {[%emt 0:02:42]} 22. a3 {[%emt 0:12:21]} a5 {[%emt 0:00:59]} 23. axb4 {[%emt 0:01:20]} axb4 {[%emt 0:00:10]} 24. Ra1 {[%emt 0:00:01]} Ra8 {[%emt 0:00:31]} 25. e5 {[%emt 0:01:22]} d5 {[%emt 0:03:40]} 26. Nd4 {[%emt 0:04:34]} dxc4 {[%emt 0:06:16]} 27. Nxc4 {[%emt 0:01:12]} Nf5 {[%emt 0:00:46]} 28. Nxf5 {[%emt 0:00:13]} gxf5 {[%emt 0:00:28]} 29. g3 1/2-1/2

[Event "23rd OIBM 2019"]
[Site "Gmund am Tegernsee"]
[Date "2019.10.29"]
[Round "4.30"]
[White "Smith, Bryan"]
[Black "Huber, Benedikt"]
[Result "1-0"]
[ECO "B48"]
[WhiteElo "2430"]
[BlackElo "2167"]
[Annotator "ChessBase"]
[PlyCount "71"]
[EventDate "2019.10.17"]
[EventType "swiss"]
[EventCountry "GER"]
[SourceTitle "playchess.com"]
[Source "ChessBase"]
[SourceQuality "1"]
[TimeControl "40/5400+30:1800+30"]

1. e4 {[%emt 0:00:00]} c5 {[%emt 0:00:00]} 2. Nf3 {[%emt 0:00:00]} e6 {[%emt 0:00:03]} 3. d4 {[%emt 0:00:00]} cxd4 {[%emt 0:00:16]} 4. Nxd4 {[%emt 0:00:04]} Nc6 {[%emt 0:00:25]} 5. Nc3 {[%emt 0:00:10]} Qc7 {[%emt 0:00:27]} 6. Be3 {[%emt 0:00:14]} a6 {[%emt 0:00:28]} 7. Bd3 {[%emt 0:00:31]} Nf6 {[%emt 0:01:46]} 8. O-O {[%emt 0:00:11]} b5 {[%emt 0:02:00]} 9. Nxc6 {[%emt 0:01:00]} dxc6 {[%emt 0:03:19]} 10. f4 {[%emt 0:07:14]} Bb7 {[%emt 0:02:07]} 11. e5 {[%emt 0:06:00]} Nd5 {[%emt 0:01:06]} 12. Nxd5 {[%emt 0:03:48]} cxd5 {[%emt 0:00:48]} 13. Bd4 {[%emt 0:08:21]} Bc5 {[%emt 0:03:02]} 14. c3 {[%emt 0:00:21]} g6 {[%emt 0:00:58]} 15. Qd2 {[%emt 0:05:28]} h5 {[%emt 0:21:30]} 16. a4 {[%emt 0:05:03]} b4 {[%emt 0:01:26]} 17. Qe3 {[%emt 0:02:24]} Bxd4 {[%emt 0:01:39]} 18. cxd4 {[%emt 0:00:33]} Qa5 {[%emt 0:07:57]} 19. Rfc1 {[%emt 0:10:25]} Rc8 {[%emt 0:01:07]} 20. Rxc8+ {[%emt 0:01:10]} Bxc8 {[%emt 0:00:05]} 21. Rc1 {[%emt 0:00:51]} Bd7 {[%emt 0:12:37]} 22. b3 {[%emt 0:00:53]} O-O {[%emt 0:03:07]} 23. Rc5 {[%emt 0:00:26]} Qb6 {[%emt 0:00:09]} 24. a5 {[%emt 0:09:33]} Qb7 {[%emt 0:03:43]} 25. Qe2 {[%emt 0:01:20]} Ra8 {[%emt 0:01:39]} 26. Kf2 {[%emt 0:02:14]} Qa7 {[%emt 0:09:19]} 27. Ke3 {[%emt 0:07:29]} Rc8 {[%emt 0:00:44]} 28. Qc2 {[%emt 0:00:40]} Qb7 {[%emt 0:00:33]} 29. Rxc8+ {[%emt 0:02:22]} Bxc8 {[%emt 0:03:40]} 30. Qc5 {[%emt 0:01:56]} Kg7 {[%emt 0:02:19]} 31. Qd6 {[%emt 0:01:20]} Kg8 {[%emt 0:01:28]} 32. Kf3 {[%emt 0:08:23]} Kg7 {[%emt 0:01:52]} 33. Kg3 {[%emt 0:00:32]} Kh7 {[%emt 0:13:34]} 34. Qf8 {[%emt 0:03:04]} Qc7 {[%emt 0:00:43]} 35. Kh4 {[%emt 0:06:51]} f5 {[%emt 0:00:49]} 36. Qxb4 {[%emt 0:01:09]} 1-0

[Event "23rd OIBM 2019"]
[Site "Gmund am Tegernsee"]
[Date "2019.10.29"]
[Round "4.31"]
[White "Bopp, Thomas"]
[Black "Braeuer, Franz"]
[Result "1/2-1/2"]
[ECO "E20"]
[WhiteElo "2156"]
[BlackElo "2429"]
[Annotator "ChessBase"]
[PlyCount "40"]
[EventDate "2019.10.17"]
[EventType "swiss"]
[EventCountry "GER"]
[SourceTitle "playchess.com"]
[Source "ChessBase"]
[SourceQuality "1"]
[TimeControl "40/5400+30:1800+30"]

1. d4 {[%emt 0:00:00]} Nf6 {[%emt 0:00:00]} 2. c4 {[%emt 0:00:00]} e6 {[%emt 0:00:00]} 3. g3 {[%emt 0:00:03]} Bb4+ {[%emt 0:00:33]} 4. Nc3 {[%emt 0:00:54]} O-O {[%emt 0:00:37]} 5. Bg2 {[%emt 0:00:27]} d5 {[%emt 0:00:16]} 6. Nf3 {[%emt 0:00:23]} dxc4 {[%emt 0:02:33]} 7. O-O {[%emt 0:00:23]} Nbd7 {[%emt 0:01:41]} 8. Qc2 {[%emt 0:02:33]} a6 {[%emt 0:19:05]} 9. Rd1 {[%emt 0:00:42]} Be7 {[%emt 0:12:02]} 10. Bf4 {[%emt 0:10:25]} Nd5 {[%emt 0:01:02]} 11. Ne5 {[%emt 0:03:38]} Nxf4 {[%emt 0:03:42]} 12. gxf4 {[%emt 0:00:10]} Nb6 {[%emt 0:05:30]} 13. e3 {[%emt 0:11:03]} f6 {[%emt 0:03:13]} 14. Be4 {[%emt 0:04:17]} f5 {[%emt 0:21:33]} 15. Bg2 {[%emt 0:01:40]} c6 {[%emt 0:00:03]} 16. Nb1 {[%emt 0:02:23]} Bd7 {[%emt 0:03:06]} 17. Nd2 {[%emt 0:01:14]} Be8 {[%emt 0:00:28]} 18. Ndxc4 {[%emt 0:00:54]} Nd5 {[%emt 0:02:11]} 19. a3 {[%emt 0:01:36]} Bh5 {[%emt 0:00:28]} 20. Rdc1 {[%emt 0:01:04]} Rc8 {[%emt 0:09:14]} 1/2-1/2

[Event "23rd OIBM 2019"]
[Site "Gmund am Tegernsee"]
[Date "2019.10.29"]
[Round "4.32"]
[White "Andersen, Jens Knud"]
[Black "Gschnitzer, Adrian"]
[Result "0-1"]
[ECO "A45"]
[WhiteElo "2142"]
[BlackElo "2412"]
[Annotator "ChessBase"]
[PlyCount "91"]
[EventDate "2019.10.17"]
[EventType "swiss"]
[EventCountry "GER"]
[SourceTitle "playchess.com"]
[Source "ChessBase"]
[SourceQuality "1"]
[TimeControl "40/5400+30:1800+30"]

1. d4 {[%emt 0:02:04]} Nf6 {[%emt 0:00:00]} 2. Bf4 {[%emt 0:00:39]} c5 {[%emt 0:00:00]} 3. e3 {[%emt 0:00:33]} cxd4 {[%emt 0:00:29]} 4. exd4 {[%emt 0:00:07]} Qb6 {[%emt 0:00:10]} 5. Na3 {[%emt 0:03:27]} a6 {[%emt 0:01:30]} 6. Nc4 {[%emt 0:01:01]} Qd8 {[%emt 0:00:09]} 7. c3 {[%emt 0:03:13]} b5 {[%emt 0:00:35]} 8. Ne3 {[%emt 0:00:31]} e6 {[%emt 0:01:27]} 9. Bd3 {[%emt 0:03:12]} Bb7 {[%emt 0:02:05]} 10. Nf3 {[%emt 0:00:45]} Be7 {[%emt 0:03:27]} 11. h3 {[%emt 0:00:58]} O-O {[%emt 0:00:40]} 12. O-O {[%emt 0:00:50]} Ne4 {[%emt 0:05:49]} 13. Qc2 {[%emt 0:14:19]} f5 {[%emt 0:00:36]} 14. a4 {[%emt 0:05:52]} b4 {[%emt 0:12:05]} 15. cxb4 {[%emt 0:02:07]} Nc6 {[%emt 0:01:23]} 16. b5 {[%emt 0:10:56]} Nb4 {[%emt 0:00:21]} 17. Qb3 {[%emt 0:00:40]} Nxd3 {[%emt 0:08:23]} 18. Qxd3 {[%emt 0:00:18]} g5 {[%emt 0:03:44]} 19. Be5 {[%emt 0:06:05]} axb5 {[%emt 0:03:18]} 20. axb5 {[%emt 0:00:24]} f4 {[%emt 0:02:29]} 21. Ng4 {[%emt 0:02:20]} h5 {[%emt 0:00:55]} 22. Nd2 {[%emt 0:06:06]} d5 {[%emt 0:14:58]} 23. f3 {[%emt 0:03:57]} hxg4 {[%emt 0:00:36]} 24. fxe4 {[%emt 0:01:08]} dxe4 {[%emt 0:02:44]} 25. Nxe4 {[%emt 0:00:37]} Qd5 {[%emt 0:03:46]} 26. Rxa8 {[%emt 0:02:41]} Bxa8 {[%emt 0:00:59]} 27. Re1 {[%emt 0:00:57]} Rf5 {[%emt 0:02:10]} 28. Qf1 {[%emt 0:09:20]} Bb4 {[%emt 0:13:51]} 29. Nc3 {[%emt 0:06:26]} Bxc3 {[%emt 0:02:12]} 30. bxc3 {[%emt 0:00:02]} gxh3 {[%emt 0:03:39]} 31. c4 {[%emt 0:00:37]} Qb7 {[%emt 0:01:56]} 32. c5 {[%emt 0:06:55]} hxg2 {[%emt 0:01:44]} 33. Qc4 {[%emt 0:00:23]} Qf7 {[%emt 0:01:55]} 34. c6 {[%emt 0:00:32]} f3 {[%emt 0:00:20]} 35. Kf2 {[%emt 0:00:35]} Kh7 {[%emt 0:03:48]} 36. c7 {[%emt 0:03:16]} Bb7 {[%emt 0:00:11]} 37. c8=Q {[%emt 0:00:23]} Bxc8 {[%emt 0:00:04]} 38. Qxc8 {[%emt 0:00:05]} g4 {[%emt 0:01:01]} 39. Qc7 {[%emt 0:03:34]} Qxc7 {[%emt 0:00:07]} 40. Bxc7 {[%emt 0:00:11]} Rxb5 {[%emt 0:00:06]} 41. Bg3 {[%emt 0:12:51]} Rh5 {[%emt 0:02:41]} 42. Bf4 {[%emt 0:05:39]} Rh1 {[%emt 0:00:46]} 43. Rg1 {[%emt 0:00:35]} Kg6 {[%emt 0:00:18]} 44. Be3 {[%emt 0:00:17]} Kf5 {[%emt 0:00:19]} 45. Kg3 {[%emt 0:00:38]} Rh3+ {[%emt 0:00:14]} 46. Kf2 {[%emt 0:00:14] Ke5} 0-1

[Event "23rd OIBM 2019"]
[Site "Gmund am Tegernsee"]
[Date "2019.10.29"]
[Round "4.33"]
[White "Piscopo, Pierluigi"]
[Black "Loew, Gerald"]
[Result "1/2-1/2"]
[ECO "B07"]
[WhiteElo "2398"]
[BlackElo "2162"]
[Annotator "ChessBase"]
[PlyCount "54"]
[EventDate "2019.10.17"]
[EventType "swiss"]
[EventCountry "GER"]
[SourceTitle "playchess.com"]
[Source "ChessBase"]
[SourceQuality "1"]
[TimeControl "40/5400+30:1800+30"]

1. e4 {[%emt 0:00:00]} d6 {[%emt 0:00:00]} 2. d4 {[%emt 0:00:00]} Nf6 {[%emt 0:00:00]} 3. Nc3 {[%emt 0:00:00]} e5 {[%emt 0:00:12]} 4. Nge2 {[%emt 0:00:50]} Nbd7 {[%emt 0:00:41]} 5. g3 {[%emt 0:00:38]} c6 {[%emt 0:00:59]} 6. Bg2 {[%emt 0:02:26]} b5 {[%emt 0:01:19]} 7. O-O {[%emt 0:00:19]} Be7 {[%emt 0:01:58]} 8. d5 {[%emt 0:03:15]} Bb7 {[%emt 0:02:57]} 9. dxc6 {[%emt 0:16:50]} Bxc6 {[%emt 0:00:10]} 10. a4 {[%emt 0:00:03]} bxa4 {[%emt 0:25:14]} 11. Be3 {[%emt 0:14:38]} O-O {[%emt 0:05:10]} 12. h3 {[%emt 0:01:57]} Qb8 {[%emt 0:08:33]} 13. Qd3 {[%emt 0:04:11]} Qb4 {[%emt 0:05:34]} 14. g4 {[%emt 0:07:15]} Nc5 {[%emt 0:02:45]} 15. Qd2 {[%emt 0:01:57]} Rab8 {[%emt 0:05:08]} 16. Ng3 {[%emt 0:02:11]} g6 {[%emt 0:21:41]} 17. Rfb1 {[%emt 0:10:47]} Rfc8 {[%emt 0:03:50]} 18. Qd1 {[%emt 0:12:12]} Rc7 {[%emt 0:01:40]} 19. g5 {[%emt 0:08:54]} Nfd7 {[%emt 0:00:53]} 20. Nd5 {[%emt 0:02:28]} Bxd5 {[%emt 0:00:07]} 21. exd5 {[%emt 0:00:03]} Rcb7 {[%emt 0:04:10]} 22. b3 {[%emt 0:02:41]} axb3 {[%emt 0:00:58]} 23. cxb3 {[%emt 0:00:01]} Qh4 {[%emt 0:01:34]} 24. Qg4 {[%emt 0:02:08]} Qxg4 {[%emt 0:00:15]} 25. hxg4 {[%emt 0:00:01]} Nxb3 {[%emt 0:02:35]} 26. Rxa7 {[%emt 0:00:19]} Rxa7 {[%emt 0:01:34]} 27. Bxa7 {[%emt 0:00:05]} Ra8 1/2-1/2

[Event "23rd OIBM 2019"]
[Site "Gmund am Tegernsee"]
[Date "2019.10.29"]
[Round "4.34"]
[White "Viebahn, Dirk"]
[Black "Padmini, Rout"]
[Result "0-1"]
[ECO "C65"]
[WhiteElo "2137"]
[BlackElo "2394"]
[Annotator "ChessBase"]
[PlyCount "77"]
[EventDate "2019.10.17"]
[EventType "swiss"]
[EventCountry "GER"]
[SourceTitle "playchess.com"]
[Source "ChessBase"]
[SourceQuality "1"]
[TimeControl "40/5400+30:1800+30"]

1. e4 {[%emt 0:00:00]} e5 {[%emt 0:00:14]} 2. Nf3 {[%emt 0:00:00]} Nc6 {[%emt 0:00:07]} 3. Bb5 {[%emt 0:00:00]} Nf6 {[%emt 0:00:27]} 4. d3 {[%emt 0:00:26]} Bc5 {[%emt 0:00:32]} 5. O-O {[%emt 0:00:39]} Nd4 {[%emt 0:00:23]} 6. Nxd4 {[%emt 0:00:38]} Bxd4 {[%emt 0:00:08]} 7. c3 {[%emt 0:02:06]} Bb6 {[%emt 0:00:11]} 8. Be3 {[%emt 0:06:57]} c6 {[%emt 0:07:40]} 9. Ba4 {[%emt 0:01:06]} Bxe3 {[%emt 0:07:57]} 10. fxe3 {[%emt 0:00:10]} Qb6 {[%emt 0:01:21]} 11. Qe2 {[%emt 0:01:30]} d6 {[%emt 0:00:57]} 12. Na3 {[%emt 0:08:14]} Be6 {[%emt 0:02:16]} 13. Bb3 {[%emt 0:06:50]} Bxb3 {[%emt 0:02:55]} 14. axb3 {[%emt 0:00:17]} d5 {[%emt 0:00:22]} 15. exd5 {[%emt 0:02:15]} cxd5 {[%emt 0:00:15]} 16. d4 {[%emt 0:05:24]} O-O {[%emt 0:00:42]} 17. dxe5 {[%emt 0:08:37]} Nd7 {[%emt 0:00:33]} 18. Qb5 {[%emt 0:03:55]} Qe6 {[%emt 0:05:29]} 19. e4 {[%emt 0:00:49]} dxe4 {[%emt 0:01:00]} 20. Nc4 {[%emt 0:00:40]} b6 {[%emt 0:05:38]} 21. Rad1 {[%emt 0:09:34]} Nc5 {[%emt 0:00:27]} 22. Rd6 {[%emt 0:09:32]} Qg4 {[%emt 0:11:52]} 23. b4 {[%emt 0:03:49]} Nd3 {[%emt 0:03:07]} 24. Qd7 {[%emt 0:06:09]} Qe2 {[%emt 0:06:35]} 25. Qh3 {[%emt 0:11:31]} Rae8 {[%emt 0:11:45]} 26. Rd7 {[%emt 0:04:08]} Nc5 {[%emt 0:13:44]} 27. bxc5 {[%emt 0:01:59]} Qxc4 {[%emt 0:00:02]} 28. cxb6 {[%emt 0:00:22]} Qc5+ {[%emt 0:00:20]} 29. Kh1 {[%emt 0:03:36]} axb6 {[%emt 0:00:07]} 30. e6 {[%emt 0:01:03]} fxe6 {[%emt 0:00:14]} 31. Re1 {[%emt 0:01:51]} Qf2 {[%emt 0:01:37]} 32. Rg1 {[%emt 0:00:06]} e3 {[%emt 0:02:47]} 33. Qg4 {[%emt 0:00:35]} Rf7 {[%emt 0:01:42]} 34. Rxf7 {[%emt 0:00:11]} Kxf7 {[%emt 0:03:49]} 35. Qh5+ {[%emt 0:00:24]} Kf8 {[%emt 0:00:38]} 36. Qxh7 {[%emt 0:01:50]} e2 {[%emt 0:01:29]} 37. Qh8+ {[%emt 0:00:45]} Ke7 {[%emt 0:01:46]} 38. Qxg7+ {[%emt 0:00:14]} Kd6 {[%emt 0:00:03]} 39. Qd4+ {[%emt 0:00:00] Ke5} 0-1

[Event "23rd OIBM 2019"]
[Site "Gmund am Tegernsee"]
[Date "2019.10.29"]
[Round "4.35"]
[White "Atakisi, Umut"]
[Black "Renner, Kai"]
[Result "1/2-1/2"]
[ECO "B43"]
[WhiteElo "2393"]
[BlackElo "2153"]
[Annotator "ChessBase"]
[PlyCount "107"]
[EventDate "2019.10.17"]
[EventType "swiss"]
[EventCountry "GER"]
[SourceTitle "playchess.com"]
[Source "ChessBase"]
[SourceQuality "1"]
[TimeControl "40/5400+30:1800+30"]

1. e4 {[%emt 0:00:00]} c5 {[%emt 0:00:04]} 2. Nf3 {[%emt 0:00:00]} e6 {[%emt 0:00:22]} 3. d4 {[%emt 0:00:00]} cxd4 {[%emt 0:00:05]} 4. Nxd4 {[%emt 0:00:00]} a6 {[%emt 0:00:20]} 5. Nc3 {[%emt 0:00:00]} Qc7 {[%emt 0:00:30]} 6. g3 {[%emt 0:00:03]} Nf6 {[%emt 0:08:24]} 7. Bg2 {[%emt 0:02:16]} d6 {[%emt 0:02:09]} 8. O-O {[%emt 0:00:12]} Be7 {[%emt 0:00:47]} 9. Re1 {[%emt 0:04:37]} Nc6 {[%emt 0:08:03]} 10. Nxc6 {[%emt 0:05:18]} bxc6 {[%emt 0:00:07]} 11. e5 {[%emt 0:14:16]} dxe5 {[%emt 0:02:58]} 12. Rxe5 {[%emt 0:00:12]} Bd6 {[%emt 0:23:51]} 13. Qf3 {[%emt 0:08:49]} Bxe5 {[%emt 0:09:15]} 14. Qxc6+ {[%emt 0:00:39]} Qxc6 {[%emt 0:00:14]} 15. Bxc6+ {[%emt 0:00:04]} Bd7 {[%emt 0:00:10]} 16. Bxa8 {[%emt 0:00:07]} O-O {[%emt 0:03:20]} 17. Bb7 {[%emt 0:01:24]} Bxc3 {[%emt 0:01:49]} 18. bxc3 {[%emt 0:00:20]} Bb5 {[%emt 0:00:47]} 19. a4 {[%emt 0:14:49]} Bc4 {[%emt 0:04:33]} 20. a5 {[%emt 0:17:04]} Rb8 {[%emt 0:09:58]} 21. Bg2 {[%emt 0:02:38]} Nd5 {[%emt 0:01:03]} 22. Bf1 {[%emt 0:00:50]} Bxf1 {[%emt 0:01:06]} 23. Kxf1 {[%emt 0:00:07]} Nxc3 {[%emt 0:00:22]} 24. Ra3 {[%emt 0:01:23]} Nd5 {[%emt 0:01:42]} 25. Ke2 {[%emt 0:01:31]} f6 {[%emt 0:08:44]} 26. c4 {[%emt 0:03:08]} Nb4 {[%emt 0:06:12]} 27. Bd2 {[%emt 0:00:56]} Kf7 {[%emt 0:01:20]} 28. Bxb4 {[%emt 0:06:30]} Rxb4 {[%emt 0:00:03]} 29. Kd3 {[%emt 0:01:47]} Ke7 {[%emt 0:02:43]} 30. Kc3 {[%emt 0:00:33]} Rb1 {[%emt 0:00:10]} 31. Ra2 {[%emt 0:00:25]} Kd6 {[%emt 0:00:26]} 32. Rd2+ {[%emt 0:00:29]} Kc6 {[%emt 0:00:45]} 33. Rd8 {[%emt 0:00:46]} Rc1+ {[%emt 0:00:31]} 34. Kb3 {[%emt 0:00:02]} Rb1+ {[%emt 0:00:28]} 35. Kc2 {[%emt 0:00:27]} Ra1 {[%emt 0:00:04]} 36. Rg8 {[%emt 0:01:26]} Rxa5 {[%emt 0:02:26]} 37. Rxg7 {[%emt 0:00:04]} Ra2+ {[%emt 0:00:24]} 38. Kb3 {[%emt 0:01:43]} Rxf2 {[%emt 0:00:08]} 39. Rxh7 {[%emt 0:00:05]} e5 {[%emt 0:01:11]} 40. g4 {[%emt 0:05:48]} Kc5 {[%emt 0:01:03]} 41. Rc7+ {[%emt 0:33:31]} Kb6 {[%emt 0:02:51]} 42. Rh7 {[%emt 0:00:00]} Kc5 {[%emt 0:00:05]} 43. Rc7+ {[%emt 0:00:00]} Kb6 {[%emt 0:00:05]} 44. Rf7 {[%emt 0:00:00]} Rxh2 {[%emt 0:00:13]} 45. Rxf6+ {[%emt 0:00:00]} Kc5 {[%emt 0:00:17]} 46. Rxa6 {[%emt 0:00:00]} Rh3+ {[%emt 0:00:23]} 47. Kc2 {[%emt 0:00:00]} Rg3 {[%emt 0:02:45]} 48. Ra5+ {[%emt 0:00:00]} Kxc4 {[%emt 0:02:27]} 49. Kd2 {[%emt 0:00:00]} e4 {[%emt 0:01:25]} 50. Ke2 {[%emt 0:00:00]} Rxg4 {[%emt 0:00:19]} 51. Ke3 {[%emt 0:00:00]} Rh4 {[%emt 0:00:14]} 52. Re5 {[%emt 0:00:00]} Kb4 {[%emt 0:00:12]} 53. Rxe4+ {[%emt 0:00:00]} Rxe4+ {[%emt 0:00:05]} 54. Kxe4 {[%emt 0:00:00]} 1/2-1/2

[Event "23rd OIBM 2019"]
[Site "Gmund am Tegernsee"]
[Date "2019.10.29"]
[Round "4.38"]
[White "Moehn, Hans"]
[Black "Babar, Michael"]
[Result "1-0"]
[ECO "A01"]
[WhiteElo "2370"]
[BlackElo "2137"]
[Annotator "ChessBase"]
[PlyCount "73"]
[EventDate "2019.10.17"]
[EventType "swiss"]
[EventCountry "GER"]
[SourceTitle "playchess.com"]
[Source "ChessBase"]
[SourceQuality "1"]
[TimeControl "40/5400+30:1800+30"]

1. b3 {[%emt 0:00:00]} c5 {[%emt 0:01:35]} 2. Bb2 {[%emt 0:00:02]} Nc6 {[%emt 0:00:05]} 3. Nf3 {[%emt 0:00:32]} d6 {[%emt 0:02:45]} 4. d4 {[%emt 0:00:41]} cxd4 {[%emt 0:00:44]} 5. Nxd4 {[%emt 0:00:06]} Bd7 {[%emt 0:02:15]} 6. c4 {[%emt 0:04:14]} Nf6 {[%emt 0:07:22]} 7. Nc3 {[%emt 0:10:43]} Qa5 {[%emt 0:11:46]} 8. e3 {[%emt 0:08:37]} g6 {[%emt 0:08:42]} 9. Be2 {[%emt 0:02:52]} Bg7 {[%emt 0:03:58]} 10. O-O {[%emt 0:00:38]} O-O {[%emt 0:00:54]} 11. Rc1 {[%emt 0:02:08]} Rac8 {[%emt 0:02:20]} 12. a3 {[%emt 0:04:22]} Nxd4 {[%emt 0:06:30]} 13. exd4 {[%emt 0:02:14]} Bh6 {[%emt 0:04:28]} 14. Ra1 {[%emt 0:04:54]} a6 {[%emt 0:05:55]} 15. Re1 {[%emt 0:05:28]} e6 {[%emt 0:03:59]} 16. b4 {[%emt 0:04:41]} Qd8 {[%emt 0:00:53]} 17. Qb3 {[%emt 0:02:02]} Bd2 {[%emt 0:09:31]} 18. Red1 {[%emt 0:04:01]} Bxc3 {[%emt 0:00:08]} 19. Bxc3 {[%emt 0:00:50]} d5 {[%emt 0:00:06]} 20. c5 {[%emt 0:00:11]} Bb5 {[%emt 0:05:01]} 21. Bf3 {[%emt 0:02:54]} Bc4 {[%emt 0:01:36]} 22. Qc2 {[%emt 0:00:33]} Ne8 {[%emt 0:03:45]} 23. Bd2 {[%emt 0:00:44]} Qf6 {[%emt 0:01:11]} 24. Bh6 {[%emt 0:00:23]} Ng7 {[%emt 0:00:04]} 25. Qd2 {[%emt 0:00:07]} Qe7 {[%emt 0:00:34]} 26. Re1 {[%emt 0:02:48]} Rfe8 {[%emt 0:03:36]} 27. Bg4 {[%emt 0:05:31]} Rc6 {[%emt 0:05:10]} 28. Re3 {[%emt 0:04:25]} f6 {[%emt 0:02:57]} 29. Rae1 {[%emt 0:00:42]} Qf7 {[%emt 0:00:20]} 30. Rf3 {[%emt 0:02:18]} Nf5 {[%emt 0:02:11]} 31. Bf4 {[%emt 0:03:29]} Ng7 {[%emt 0:00:20]} 32. Bd6 {[%emt 0:00:50]} h5 {[%emt 0:01:42]} 33. Bh3 {[%emt 0:01:08]} g5 {[%emt 0:00:37]} 34. g4 {[%emt 0:03:18]} h4 {[%emt 0:00:40]} 35. Be5 {[%emt 0:00:45]} Nf5 {[%emt 0:02:53]} 36. gxf5 {[%emt 0:01:00]} fxe5 {[%emt 0:00:27]} 37. Qxg5+ {[%emt 0:02:58]} 1-0